bitfinex/quotes_BTCUSD_20251029
["timestamp","ask_amount","ask_price","bid_price","bid_amount"]
[1761768589459,4.12432743,110830.0,110820.0,0.2454]
[1761768589921,4.12432743,110830.0,110820.0,0.27773]
[1761768591085,4.12332743,110830.0,110820.0,0.27773]
[1761768591287,4.12232743,110830.0,110820.0,0.27773]
[1761768591541,3.61868034,110830.0,110820.0,0.27773]
[1761768591986,3.97432743,110830.0,110820.0,0.18033]
[1761768592429,3.97432743,110830.0,110820.0,0.148]
[1761768594555,3.97532743,110830.0,110820.0,0.148]
[1761768595027,3.97632743,110830.0,110820.0,0.148]
[1761768595672,3.97532743,110830.0,110820.0,0.148]
[1761768596592,3.97632743,110830.0,110820.0,0.148]
[1761768598146,3.97532743,110830.0,110820.0,0.148]
[1761768598367,3.97432743,110830.0,110820.0,0.148]
[1761768599327,3.47068034,110830.0,110820.0,0.148]
[1761768599565,3.97432743,110830.0,110820.0,0.148]
[1761768600500,3.99853541,110830.0,110820.0,0.148]
[1761768601197,0.03261276,110830.0,110820.0,0.2298]
[1761768601425,0.03361276,110830.0,110820.0,0.09711033]
[1761768601652,0.01040478,110830.0,110820.0,0.09711033]
[1761768601861,0.00840478,110830.0,110820.0,0.30987606]
[1761768602078,0.03261276,110840.0,110820.0,0.30987606]
[1761768602341,0.03275841,110840.0,110830.0,0.27342688]
[1761768602556,0.03275841,110840.0,110830.0,0.14244033]
[1761768603011,0.88993852,110840.0,110830.0,0.03233]
[1761768603215,1.03263779,110840.0,110830.0,0.03233]
[1761768603441,0.85219752,110840.0,110830.0,0.03233]
[1761768603666,0.87639984,110840.0,110830.0,0.03233]
[1761768603881,0.85219752,110840.0,110830.0,0.0818]
[1761768604095,0.87640044,110840.0,110830.0,0.04764033]
[1761768605173,0.85219752,110840.0,110830.0,0.04764033]
[1761768605387,0.85219752,110840.0,110830.0,0.04964033]
[1761768605597,0.34855043,110840.0,110830.0,0.09911033]
[1761768605809,0.37275791,110840.0,110830.0,0.09711033]
[1761768607972,0.37275791,110840.0,110830.0,0.10011033]
[1761768608189,0.876405,110840.0,110830.0,0.05064033]
[1761768609074,0.876405,110840.0,110830.0,0.04964033]
[1761768609287,0.876405,110840.0,110830.0,0.09359033]
[1761768609506,0.87674802,110840.0,110830.0,0.09359033]
[1761768609753,0.87674802,110840.0,110830.0,0.76662492]
[1761768609754,0.00855043,110840.0,110830.0,0.76662492]
[1761768609997,0.00014469,110840.0,110830.0,0.75726589]
[1761768610197,0.00014469,110840.0,110830.0,0.54804817]
[1761768611275,0.00014469,110840.0,110830.0,0.55104817]
[1761768611485,0.00014469,110840.0,110830.0,0.51286589]
[1761768611696,0.00014469,110840.0,110830.0,0.54804817]
[1761768611904,0.00014469,110840.0,110830.0,0.55104817]
[1761768612115,0.00014469,110840.0,110830.0,0.55404817]
[1761768612339,0.00014469,110840.0,110830.0,0.55104817]
[1761768612547,0.00014469,110840.0,110830.0,0.55604817]
[1761768613654,0.00014469,110840.0,110830.0,0.50455556]
[1761768613898,0.00014469,110840.0,110830.0,0.33940934]
[1761768614325,0.00014469,110840.0,110830.0,0.24959033]
[1761768614758,0.00014469,110840.0,110830.0,0.24659033]
[1761768614959,0.00014469,110840.0,110830.0,0.24859033]
[1761768615424,0.01705881,110850.0,110840.0,0.16316564]
[1761768615635,0.01705881,110850.0,110840.0,0.22703531]
[1761768615841,0.01705881,110850.0,110840.0,0.48774564]
[1761768617314,0.69925068,110850.0,110840.0,0.42609531]
[1761768617531,0.69925068,110850.0,110840.0,0.42709531]
[1761768617789,0.01705881,110850.0,110840.0,0.48874564]
[1761768618214,0.00021881,110850.0,110840.0,0.48774564]
[1761768619119,0.69925068,110850.0,110840.0,0.148]
[1761768619342,0.69925068,110850.0,110840.0,0.18284]
[1761768619558,0.69925068,110850.0,110840.0,0.19815033]
[1761768619773,0.69925068,110850.0,110840.0,0.24449033]
[1761768620221,0.01705881,110850.0,110840.0,0.24249033]
[1761768620888,1.23320646,110850.0,110840.0,0.148]
[1761768621128,4.21967467,110850.0,110840.0,0.149]
[1761768621373,4.30949368,110850.0,110840.0,0.151]
[1761768621659,4.30949368,110850.0,110840.0,0.15]
[1761768621864,4.33370116,110850.0,110840.0,0.15]
[1761768622088,4.34208153,110850.0,110840.0,0.15]
[1761768622740,4.34308153,110850.0,110840.0,0.15]
[1761768623008,4.37531077,110850.0,110840.0,0.148]
[1761768623226,4.37531077,110850.0,110840.0,0.18084]
[1761768623446,4.37531077,110850.0,110840.0,0.148]
[1761768624354,0.52044027,110840.0,110830.0,0.3934]
[1761768624584,4.32498066,110840.0,110830.0,0.148]
[1761768625252,4.3572099,110840.0,110830.0,0.148]
[1761768626593,0.34,110810.0,110800.0,0.19333]
[1761768626812,1.03715187,110810.0,110800.0,0.24162502]
[1761768627020,1.03715187,110810.0,110800.0,0.28796502]
[1761768627226,0.35496,110810.0,110800.0,0.28796502]
[1761768627432,0.35496,110810.0,110800.0,0.27265469]
[1761768627674,0.35496,110810.0,110800.0,0.28796502]
[1761768627873,0.34,110810.0,110800.0,0.28796502]
[1761768628308,0.34,110810.0,110800.0,0.29096502]
[1761768628751,1.03715187,110820.0,110800.0,0.28796502]
[1761768628975,1.03715187,110820.0,110810.0,0.07918]
[1761768629210,0.35496,110820.0,110810.0,0.07918]
[1761768629647,0.34,110820.0,110810.0,0.07918]
[1761768629864,0.34,110820.0,110810.0,0.09449033]
[1761768630085,0.86265126,110830.0,110810.0,0.24249033]
[1761768630308,3.95247027,110830.0,110820.0,0.09449033]
[1761768630554,3.98501146,110830.0,110820.0,0.09449033]
[1761768630774,3.98500862,110830.0,110820.0,0.04815033]
[1761768631207,0.98500862,110830.0,110820.0,0.04815033]
[1761768631425,0.98500862,110830.0,110820.0,0.09449033]
[1761768631857,0.98500862,110830.0,110820.0,0.04815033]
[1761768632074,1.32500862,110830.0,110820.0,0.04815033]
[1761768632981,1.14455207,110830.0,110820.0,0.09449033]
[1761768633226,1.32500862,110830.0,110820.0,0.07918]
[1761768633447,1.32500862,110830.0,110820.0,0.04815033]
[1761768633904,1.32500862,110830.0,110820.0,0.01531033]
[1761768634126,0.34,110820.0,110810.0,0.16331033]
[1761768634381,1.21105556,110820.0,110810.0,0.18084]
[1761768634593,1.03058273,110820.0,110810.0,0.19615033]
[1761768635045,1.03058273,110820.0,110810.0,0.24249033]
[1761768635278,1.02219187,110820.0,110810.0,0.24249033]
[1761768635499,1.02219187,110820.0,110810.0,0.24349033]
[1761768635935,0.68219187,110820.0,110810.0,0.24349033]
[1761768636378,0.68219187,110820.0,110810.0,0.149]
[1761768636379,0.8626647,110820.0,110810.0,0.149]
[1761768636832,0.68219187,110820.0,110810.0,0.19915033]
[1761768637059,0.68219187,110820.0,110810.0,0.24549033]
[1761768637281,0.68219187,110820.0,110810.0,0.24449033]
[1761768637496,0.68219187,110820.0,110810.0,0.24249033]
[1761768637725,0.18045655,110830.0,110820.0,0.00531034]
[1761768637946,0.87103531,110830.0,110820.0,0.03836034]
[1761768638194,0.87103531,110830.0,110810.0,0.16331033]
[1761768638410,0.68219187,110820.0,110810.0,0.19636033]
[1761768639143,0.68219187,110820.0,110810.0,0.24329033]
[1761768639363,0.68219187,110820.0,110810.0,0.19636033]
[1761768639820,0.68219187,110820.0,110810.0,0.24329033]
[1761768640292,0.88679876,110830.0,110820.0,0.01531033]
[1761768640507,0.89518304,110830.0,110820.0,0.01531033]
[1761768640930,0.89518304,110830.0,110810.0,0.16531033]
[1761768641150,0.68219187,110820.0,110810.0,0.16531033]
[1761768641379,0.68219187,110820.0,110810.0,0.24329033]
[1761768641830,0.68219187,110820.0,110810.0,0.48869033]
[1761768642071,0.68219187,110820.0,110810.0,0.47338]
[1761768642303,0.68219187,110820.0,110810.0,0.44176033]
[1761768642526,0.68219187,110820.0,110810.0,0.42649]
[1761768642779,0.204608,110830.0,110820.0,0.01531033]
[1761768643002,0.21299047,110830.0,110810.0,0.44180033]
[1761768643236,0.21299047,110830.0,110810.0,0.42649]
[1761768643459,0.21299047,110830.0,110810.0,0.47280033]
[1761768643460,0.18047283,110820.0,110810.0,0.47280033]
[1761768643684,0.18047283,110820.0,110810.0,0.45749]
[1761768643901,0.8626647,110820.0,110810.0,0.47380033]
[1761768644366,0.8626647,110820.0,110810.0,0.47180033]
[1761768645310,1.2026647,110820.0,110810.0,0.47180033]
[1761768645542,1.2026647,110820.0,110810.0,0.19335033]
[1761768645773,1.21104581,110820.0,110810.0,0.19435033]
[1761768645984,1.23519502,110820.0,110810.0,0.17904]
[1761768646192,1.23519502,110820.0,110810.0,0.19435033]
[1761768646405,1.23519502,110820.0,110810.0,0.22940033]
[1761768646406,1.26742426,110820.0,110810.0,0.22940033]
[1761768646837,1.08695143,110820.0,110810.0,0.22740033]
[1761768647042,1.23519502,110820.0,110810.0,0.22640033]
[1761768647249,1.26742426,110820.0,110810.0,0.27333033]
[1761768647448,1.26742426,110820.0,110810.0,0.22640033]
[1761768647661,0.83480793,110820.0,110810.0,0.22640033]
[1761768648088,0.34838118,110820.0,110810.0,0.27333033]
[1761768648316,0.52885401,110820.0,110810.0,0.22640033]
[1761768648741,1.03057305,110820.0,110810.0,0.22640033]
[1761768648957,1.21104588,110820.0,110810.0,0.27333033]
[1761768649174,1.21104588,110820.0,110810.0,0.19335033]
[1761768649382,1.05472219,110820.0,110810.0,0.22640033]
[1761768649587,1.03057305,110820.0,110810.0,0.22640033]
[1761768650330,1.23519502,110820.0,110810.0,0.22640033]
[1761768650965,1.23519502,110820.0,110810.0,0.07840033]
[1761768651577,1.05472219,110820.0,110810.0,0.07840033]
[1761768651976,1.23519502,110820.0,110810.0,0.07840033]
[1761768652374,1.05472219,110820.0,110810.0,0.07840033]
[1761768652724,1.23519502,110820.0,110810.0,0.07840033]
[1761768653414,1.23562109,110820.0,110810.0,0.07840033]
[1761768653617,0.99670443,110820.0,110810.0,0.07840033]
[1761768654764,0.65670443,110820.0,110810.0,0.07840033]
[1761768654958,0.65670443,110820.0,110810.0,0.04535033]
[1761768655663,0.65670443,110820.0,110810.0,0.07840033]
[1761768656376,0.65670443,110820.0,110810.0,0.19335033]
[1761768656578,0.74652344,110820.0,110810.0,0.17804]
[1761768656977,0.74652344,110820.0,110810.0,0.19335033]
[1761768657395,0.74652344,110820.0,110760.0,0.03618228]
[1761768657396,3.0952,110810.0,110760.0,0.03618228]
[1761768657566,3.74361558,110770.0,110720.0,0.04877851]
[1761768657771,4.42298588,110730.0,110720.0,0.00048269]
[1761768658056,4.42298588,110730.0,110710.0,0.0004]
[1761768658057,3.62062232,110720.0,110710.0,0.0004]
[1761768658280,0.52065215,110710.0,110700.0,0.03082625]
[1761768658500,0.52065215,110710.0,110690.0,0.0004]
[1761768658501,3.18066847,110700.0,110690.0,0.0004]
[1761768658733,0.18978331,110660.0,110640.0,0.04693]
[1761768658944,3.65609139,110650.0,110640.0,0.08990628]
[1761768659155,0.99609139,110650.0,110640.0,8.727e-05]
[1761768659352,0.99764645,110650.0,110640.0,8.727e-05]
[1761768659556,0.47689634,110650.0,110640.0,0.03313727]
[1761768659778,0.68477956,110650.0,110640.0,0.08006727]
[1761768659987,3.68477956,110650.0,110640.0,0.08006727]
[1761768660202,0.68477956,110650.0,110640.0,0.08006727]
[1761768660413,0.75200719,110660.0,110640.0,0.08006727]
[1761768660629,0.15704664,110660.0,110650.0,0.12762]
[1761768660846,0.22137647,110680.0,110650.0,0.12762]
[1761768661070,3.08981901,110670.0,110650.0,0.09457]
[1761768661309,3.0,110660.0,110650.0,0.04764]
[1761768661524,3.0,110660.0,110650.0,0.08069]
[1761768661733,0.86551333,110660.0,110650.0,0.08069]
[1761768661957,3.0,110650.0,110640.0,8.727e-05]
[1761768662179,0.71641956,110650.0,110640.0,0.04701727]
[1761768662398,0.71641956,110650.0,110640.0,0.03313727]
[1761768663040,0.64220912,110650.0,110640.0,8.727e-05]
[1761768663254,4.14623857,110650.0,110640.0,8.727e-05]
[1761768663705,4.14644121,110650.0,110640.0,8.727e-05]
[1761768664546,4.14644121,110650.0,110640.0,0.00208727]
[1761768664956,4.21462369,110650.0,110640.0,0.00208727]
[1761768665165,4.21462369,110650.0,110640.0,0.00508727]
[1761768665780,1.12480468,110650.0,110640.0,0.18585371]
[1761768665983,1.12480468,110650.0,110640.0,0.03813727]
[1761768666207,1.12480468,110650.0,110640.0,0.08506727]
[1761768666413,1.12480468,110650.0,110640.0,0.21890371]
[1761768666626,1.12480468,110650.0,110640.0,0.03813727]
[1761768666825,1.12480468,110650.0,110640.0,0.00508727]
[1761768667028,1.12480468,110650.0,110640.0,0.03813727]
[1761768667651,1.12480468,110650.0,110640.0,0.08584727]
[1761768667652,1.09316468,110650.0,110640.0,0.08584727]
[1761768667855,1.09316468,110650.0,110640.0,0.03813727]
[1761768669106,0.6849822,110650.0,110640.0,0.26661371]
[1761768669531,0.6849822,110650.0,110640.0,0.29378763]
[1761768669735,0.6849822,110650.0,110640.0,0.26661371]
[1761768670973,0.6849822,110650.0,110640.0,0.08584727]
[1761768671219,0.6849822,110650.0,110640.0,0.26661371]
[1761768671597,0.6849822,110650.0,110640.0,0.27565203]
[1761768671598,0.50562528,110650.0,110640.0,0.27565203]
[1761768672713,0.06678791,110670.0,110650.0,0.18074623]
[1761768672937,0.50562528,110660.0,110650.0,0.22845623]
[1761768673178,0.50562528,110660.0,110650.0,0.18074623]
[1761768673479,0.50562528,110660.0,110650.0,0.21383623]
[1761768673695,0.50562528,110660.0,110650.0,0.30862123]
[1761768674189,0.50562528,110660.0,110650.0,0.71105873]
[1761768674435,0.01302671,110670.0,110650.0,0.40947774]
[1761768674671,0.01302671,110670.0,110660.0,0.04771]
[1761768674887,0.18071744,110670.0,110650.0,0.0992]
[1761768675131,0.24759344,110670.0,110650.0,0.05149]
[1761768675341,0.18073377,110660.0,110650.0,0.05149]
[1761768675554,3.35355503,110660.0,110650.0,0.003]
[1761768675764,3.84562528,110660.0,110650.0,0.03609]
[1761768676179,3.84562528,110660.0,110650.0,0.08458]
[1761768676424,4.02635905,110660.0,110650.0,0.003]
[1761768677106,0.34,110660.0,110650.0,0.08158]
[1761768677343,0.84562528,110660.0,110650.0,0.12929]
[1761768677562,0.50562528,110660.0,110650.0,0.12929]
[1761768678259,0.50562528,110660.0,110650.0,0.13029]
[1761768678505,0.50562528,110660.0,110650.0,0.08258]
[1761768679455,0.68635905,110660.0,110650.0,0.12879]
[1761768679677,0.50562528,110660.0,110650.0,0.12879]
[1761768679905,0.68635905,110660.0,110650.0,0.23058]
[1761768680148,0.68635905,110660.0,110650.0,0.149]
[1761768680377,4.02635905,110660.0,110650.0,0.149]
[1761768680611,4.02635905,110660.0,110650.0,0.001]
[1761768680612,4.11617806,110660.0,110650.0,0.001]
[1761768680838,4.11617806,110660.0,110650.0,0.003]
[1761768681995,4.2002783,110660.0,110650.0,0.003]
[1761768682471,4.11045929,110660.0,110650.0,0.03521]
[1761768682693,1.14227433,110660.0,110650.0,0.03521]
[1761768683149,1.09383163,110660.0,110650.0,0.03521]
[1761768683367,1.11045929,110660.0,110650.0,0.03521]
[1761768683810,1.11045929,110660.0,110650.0,0.03138945]
[1761768684248,0.34,110650.0,110640.0,0.02879971]
[1761768684456,1.12572281,110650.0,110640.0,0.02879971]
[1761768684670,0.94498852,110650.0,110640.0,0.06100971]
[1761768685755,0.94498852,110650.0,110640.0,0.24177615]
[1761768685756,0.09936324,110650.0,110640.0,0.24177615]
[1761768686041,0.03348853,110650.0,110640.0,0.38364241]
[1761768686310,0.06536317,110650.0,110640.0,0.53164241]
[1761768686654,0.03348853,110650.0,110640.0,0.53164241]
[1761768686880,0.06540832,110650.0,110640.0,0.53164241]
[1761768687115,0.06540832,110650.0,110640.0,0.88926769]
[1761768687344,0.06368988,110660.0,110650.0,0.21693239]
[1761768687572,0.06368988,110670.0,110660.0,0.18073377]
[1761768687811,0.03198817,110670.0,110660.0,0.36544278]
[1761768688023,0.03198817,110670.0,110660.0,0.21691901]
[1761768688482,0.04031821,110670.0,110660.0,0.39765278]
[1761768688726,0.03198817,110670.0,110660.0,0.39765278]
[1761768688943,0.04031799,110670.0,110660.0,0.39765278]
[1761768689359,0.03198817,110670.0,110660.0,0.39765278]
[1761768689780,0.03198817,110670.0,110660.0,0.21691901]
[1761768689993,0.04031736,110670.0,110660.0,0.39765278]
[1761768690677,0.04031795,110670.0,110660.0,0.21691901]
[1761768691089,0.54594323,110670.0,110660.0,0.21691901]
[1761768691293,0.51395506,110670.0,110660.0,0.21691901]
[1761768692210,0.51395506,110670.0,110660.0,0.08089]
[1761768692438,0.51395506,110670.0,110660.0,0.1271]
[1761768692672,0.54593487,110670.0,110660.0,0.1271]
[1761768693794,0.54593487,110670.0,110660.0,0.12595385]
[1761768694284,0.51395506,110670.0,110660.0,0.12595385]
[1761768694499,0.00832978,110670.0,110660.0,0.40735065]
[1761768694725,0.04030451,110670.0,110660.0,0.39650466]
[1761768694928,0.54592979,110670.0,110660.0,0.21577286]
[1761768695136,0.54592669,110670.0,110660.0,0.21577286]
[1761768696050,0.51395196,110670.0,110660.0,0.21577286]
[1761768696298,0.51395137,110670.0,110660.0,0.39650663]
[1761768696554,0.50562528,110670.0,110660.0,0.21577286]
[1761768697171,0.56158057,110670.0,110660.0,0.21577286]
[1761768697382,0.56158057,110670.0,110660.0,0.16956286]
[1761768697595,0.58103057,110670.0,110660.0,0.16956286]
[1761768697803,0.56158057,110670.0,110660.0,0.21643286]
[1761768698008,0.58076491,110670.0,110660.0,0.21643286]
[1761768698815,0.55678407,110670.0,110660.0,0.21643286]
[1761768699648,0.58076778,110670.0,110660.0,0.21643286]
[1761768700091,0.76148522,110670.0,110660.0,0.36443286]
[1761768700289,0.55678407,110670.0,110660.0,0.36443286]
[1761768700914,0.60594407,110670.0,110660.0,0.22774385]
[1761768701535,0.55678407,110670.0,110660.0,0.27461385]
[1761768701737,0.55678407,110670.0,110660.0,0.27315709]
[1761768702758,0.57602407,110670.0,110660.0,0.22628709]
[1761768703170,0.57602407,110670.0,110660.0,0.27315709]
[1761768703171,0.55678407,110670.0,110660.0,0.27315709]
[1761768703800,0.55678407,110670.0,110660.0,0.27006246]
[1761768705327,0.05115879,110670.0,110660.0,0.27006246]
[1761768705550,0.55678407,110670.0,110660.0,0.27006246]
[1761768706152,0.6048217,110670.0,110660.0,0.27006246]
[1761768706363,0.61316459,110670.0,110660.0,0.27006246]
[1761768706580,0.10753931,110670.0,110660.0,0.54061524]
[1761768706816,0.09919642,110670.0,110660.0,0.54061524]
[1761768706996,0.6048217,110670.0,110660.0,0.35988147]
[1761768707200,0.61316882,110670.0,110660.0,0.54061524]
[1761768708048,0.56931516,110680.0,110660.0,0.63801524]
[1761768708265,0.02403995,110670.0,110660.0,0.64171547]
[1761768708702,0.02403995,110670.0,110660.0,0.38056752]
[1761768708929,0.02403995,110680.0,110670.0,0.21689972]
[1761768709149,0.03239249,110680.0,110670.0,0.41206873]
[1761768710288,0.03239249,110680.0,110670.0,0.41406873]
[1761768711210,0.03339249,110680.0,110670.0,0.41406873]
[1761768712077,0.03239249,110680.0,110670.0,0.41406873]
[1761768712283,0.00835254,110680.0,110670.0,0.41406873]
[1761768712487,0.02403995,110690.0,110680.0,0.18070112]
[1761768712699,0.03240497,110690.0,110680.0,0.34824013]
[1761768712907,0.03240497,110690.0,110680.0,0.38442241]
[1761768713844,0.03254945,110690.0,110680.0,0.38349403]
[1761768714352,0.0085095,110690.0,110680.0,0.38449403]
[1761768715069,0.0085095,110690.0,110680.0,0.38349403]
[1761768715300,0.00014448,110690.0,110680.0,0.38349403]
[1761768715541,0.00014448,110690.0,110680.0,0.38549403]
[1761768715785,0.00014448,110690.0,110680.0,0.46047818]
[1761768716044,0.00014448,110690.0,110680.0,0.45947818]
[1761768716302,0.00014448,110690.0,110680.0,0.46347818]
[1761768717167,0.00014448,110690.0,110680.0,0.38949403]
[1761768717317,0.50576976,110690.0,110680.0,0.38949403]
[1761768717570,0.50576976,110690.0,110680.0,0.38749403]
[1761768717813,0.50576976,110690.0,110680.0,0.39049403]
[1761768719999,0.00014448,110690.0,110680.0,0.39049403]
[1761768720213,0.50576976,110690.0,110680.0,0.39049403]
[1761768720968,0.00014448,110690.0,110680.0,0.39049403]
[1761768721197,0.50576976,110690.0,110680.0,0.39049403]
[1761768721618,0.50576976,110690.0,110680.0,0.3821386]
[1761768722029,0.50576976,110690.0,110680.0,0.34595632]
[1761768723098,0.50576976,110690.0,110680.0,0.34195632]
[1761768723527,0.50576976,110690.0,110680.0,0.34295632]
[1761768723736,0.00014448,110690.0,110680.0,0.43116898]
[1761768724146,0.00014448,110690.0,110680.0,0.3781386]
[1761768726809,0.00014448,110690.0,110680.0,0.7715386]
[1761768730841,0.30488913,110700.0,110690.0,0.21350479]
[1761768731074,0.30502,110700.0,110690.0,0.3980238]
[1761768731517,0.50532825,110700.0,110690.0,0.3980238]
[1761768731960,0.00013087,110700.0,110690.0,0.3980238]
[1761768732671,0.00013087,110700.0,110690.0,0.5460238]
[1761768734002,0.00013087,110700.0,110690.0,0.5470238]
[1761768734486,0.00013087,110700.0,110690.0,0.5010138]
[1761768734698,0.00013087,110700.0,110690.0,0.5465938]
[1761768734911,0.00220087,110700.0,110690.0,0.5020138]
[1761768735155,1.0736012,110700.0,110690.0,0.15]
[1761768735364,1.26264574,110700.0,110690.0,0.15]
[1761768735774,1.26264574,110700.0,110690.0,0.151]
[1761768736034,1.26264574,110700.0,110690.0,0.15]
[1761768737068,1.26364574,110700.0,110690.0,0.15]
[1761768737494,1.26364574,110700.0,110690.0,0.148]
[1761768737712,1.08297727,110700.0,110690.0,0.148]
[1761768737924,1.08297727,110700.0,110690.0,0.149]
[1761768738139,1.11273347,110700.0,110690.0,0.149]
[1761768738398,1.08297727,110700.0,110690.0,0.148]
[1761768739475,0.00113087,110700.0,110690.0,0.44031497]
[1761768739698,0.00113087,110700.0,110690.0,0.3966038]
[1761768740379,0.00013087,110700.0,110690.0,0.3966038]
[1761768741025,0.00013087,110700.0,110690.0,0.3976038]
[1761768741456,0.00013087,110700.0,110690.0,0.3966038]
[1761768741887,0.00013087,110700.0,110690.0,0.3996038]
[1761768742330,0.00013087,110700.0,110690.0,0.4026038]
[1761768742579,0.00013087,110700.0,110690.0,0.43878608]
[1761768742791,0.00013087,110700.0,110690.0,0.46391631]
[1761768743020,0.00013087,110700.0,110690.0,1.29587664]
[1761768743234,0.05965943,110730.0,110720.0,0.18063583]
[1761768743446,0.01949358,110730.0,110720.0,0.21676463]
[1761768743665,0.01949358,110730.0,110720.0,0.26015583]
[1761768743891,0.01949358,110730.0,110720.0,0.30673583]
[1761768744517,0.01949358,110730.0,110720.0,0.30773583]
[1761768745625,0.02049358,110730.0,110720.0,0.30773583]
[1761768746742,0.02049358,110730.0,110720.0,0.30777583]
[1761768746958,0.00938658,110730.0,110720.0,0.44643764]
[1761768748114,0.00938658,110730.0,110720.0,0.39659484]
[1761768748343,0.00838658,110730.0,110720.0,0.39859484]
[1761768748569,0.02001191,110740.0,110730.0,0.18061952]
[1761768748791,0.02242674,110740.0,110730.0,0.30308853]
[1761768750879,0.02242674,110740.0,110730.0,0.30408853]
[1761768752067,0.36242674,110740.0,110730.0,0.27143853]
[1761768752280,0.41032674,110740.0,110730.0,0.27143853]
[1761768752493,1.11790861,110740.0,110730.0,0.18161952]
[1761768752733,0.43443942,110740.0,110730.0,0.18161952]
[1761768752967,0.38653942,110740.0,110730.0,0.26113952]
[1761768753179,0.04653942,110740.0,110730.0,0.26113952]
[1761768753818,0.02015674,110740.0,110730.0,0.39753853]
[1761768754036,0.02015674,110740.0,110730.0,0.46004697]
[1761768754291,0.00014483,110740.0,110730.0,0.58172081]
[1761768754716,0.00014483,110740.0,110730.0,1.11726004]
[1761768755800,0.00014483,110740.0,110730.0,0.43372081]
[1761768756224,0.00014483,110740.0,110730.0,0.43672081]
[1761768757292,0.00014483,110740.0,110730.0,0.43572081]
[1761768757731,0.00014483,110740.0,110730.0,0.43872081]
[1761768760088,0.00420483,110740.0,110730.0,0.23348952]
[1761768760384,0.39096483,110740.0,110730.0,0.006]
[1761768760868,0.39932813,110740.0,110730.0,0.003]
[1761768761393,0.39932813,110740.0,110730.0,0.005]
[1761768761626,0.39932813,110740.0,110730.0,0.003]
[1761768762093,0.39932813,110740.0,110720.0,4e-05]
[1761768762094,0.57993134,110740.0,110720.0,4e-05]
[1761768762382,0.09419,110730.0,110720.0,4e-05]
[1761768764056,0.121344,110730.0,110720.0,4e-05]
[1761768765478,0.09419,110730.0,110720.0,4e-05]
[1761768766621,0.09419,110730.0,110720.0,0.18067583]
[1761768766843,0.09419,110730.0,110720.0,4e-05]
[1761768767316,0.09419,110730.0,110720.0,0.18067583]
[1761768768002,0.10256392,110730.0,110720.0,0.18067583]
[1761768768212,0.10256392,110730.0,110720.0,4e-05]
[1761768768415,0.12972083,110730.0,110720.0,4e-05]
[1761768768896,0.10256683,110730.0,110720.0,4e-05]
[1761768769112,0.10256683,110730.0,110720.0,0.18067583]
[1761768770988,0.10256683,110730.0,110720.0,4e-05]
[1761768771218,0.12972591,110730.0,110720.0,4e-05]
[1761768774231,0.12972591,110730.0,110720.0,0.21089583]
[1761768774232,0.08253591,110730.0,110720.0,0.21089583]
[1761768775137,0.00499,110730.0,110720.0,0.21089583]
[1761768775354,0.00499,110730.0,110720.0,0.03026]
[1761768775772,0.00499,110730.0,110720.0,0.21089583]
[1761768776660,0.00499,110730.0,110720.0,0.03026]
[1761768777094,0.00499,110730.0,110720.0,0.21089583]
[1761768777335,0.00499,110730.0,110720.0,0.03026]
[1761768777538,0.00499,110730.0,110720.0,4e-05]
[1761768777751,0.00499,110730.0,110720.0,0.18067583]
[1761768777964,0.00499,110730.0,110720.0,0.21089583]
[1761768779064,0.00499,110730.0,110720.0,0.03026]
[1761768779248,0.00499,110730.0,110720.0,4e-05]
[1761768779506,0.22403952,110730.0,110720.0,4e-05]
[1761768779725,0.04342,110730.0,110720.0,0.14804]
[1761768780135,0.22403952,110730.0,110720.0,0.14804]
[1761768780828,0.04342,110730.0,110720.0,0.14804]
[1761768781066,0.00499,110730.0,110720.0,0.17826]
[1761768781272,0.04342,110730.0,110720.0,0.14804]
[1761768781481,0.47650381,110740.0,110720.0,0.40456583]
[1761768781688,3.0,110730.0,110720.0,0.40456583]
[1761768781894,0.27115021,110740.0,110730.0,0.03022]
[1761768782119,0.25747021,110740.0,110730.0,0.03022]
[1761768782332,0.27115021,110740.0,110730.0,0.03022]
[1761768782990,0.27115021,110740.0,110730.0,0.07661]
[1761768783183,0.27115021,110740.0,110730.0,0.30289952]
[1761768783184,0.367154,110740.0,110730.0,0.30289952]
[1761768783474,0.382834,110740.0,110730.0,0.25722952]
[1761768783699,0.35568,110740.0,110720.0,0.37434583]
[1761768784036,0.03881,110730.0,110720.0,0.32867583]
[1761768784249,0.03881,110730.0,110720.0,0.14804]
[1761768784464,0.21942952,110730.0,110720.0,0.14804]
[1761768784675,0.23619388,110730.0,110720.0,0.14804]
[1761768785139,0.26030656,110730.0,110720.0,0.14804]
[1761768785337,0.26030656,110730.0,110720.0,0.14904]
[1761768785763,0.10684291,110730.0,110720.0,0.14804]
[1761768786759,0.28746243,110730.0,110720.0,0.14804]
[1761768786964,0.07680187,110730.0,110720.0,0.14904]
[1761768787174,0.11523187,110730.0,110720.0,0.14804]
[1761768787625,0.11623187,110730.0,110720.0,0.14904]
[1761768787908,0.29685139,110730.0,110720.0,0.14904]
[1761768788081,0.29685139,110730.0,110720.0,0.14804]
[1761768789056,0.11623187,110730.0,110720.0,0.14804]
[1761768789264,0.07780187,110730.0,110720.0,0.14804]
[1761768789475,0.11623187,110730.0,110720.0,0.14804]
[1761768789808,0.07780187,110730.0,110720.0,0.32867583]
[1761768790017,0.07742187,110730.0,110720.0,0.36012583]
[1761768790225,0.07745491,110730.0,110720.0,0.36012583]
[1761768790438,0.07745491,110730.0,110720.0,0.40651583]
[1761768790659,0.41745491,110730.0,110720.0,0.40651583]
[1761768790873,0.39029904,110730.0,110720.0,0.40651583]
[1761768791114,0.34939545,110730.0,110720.0,0.45256639]
[1761768791331,0.34939545,110730.0,110720.0,0.40651583]
[1761768792040,0.00939545,110730.0,110720.0,0.49633484]
[1761768792259,0.001,110730.0,110720.0,0.49633484]
[1761768792925,0.05630563,110750.0,110740.0,0.18060321]
[1761768793134,0.0493012,110750.0,110740.0,0.25789321]
[1761768793344,0.0493012,110750.0,110740.0,0.30423321]
[1761768794013,0.0493012,110750.0,110740.0,0.45223321]
[1761768794672,0.0503012,110750.0,110740.0,0.45223321]
[1761768799671,0.0639812,110750.0,110740.0,0.22529]
[1761768800010,0.00939617,110750.0,110740.0,0.40589321]
[1761768800217,0.02078262,110750.0,110740.0,0.45223321]
[1761768800424,0.00939617,110750.0,110740.0,0.45223321]
[1761768801610,0.00939617,110750.0,110740.0,0.51551759]
[1761768801816,0.00939617,110750.0,110740.0,0.45223321]
[1761768802992,0.34,110740.0,110730.0,0.22698952]
[1761768803196,0.34,110740.0,110730.0,0.27332952]
[1761768803431,0.34,110740.0,110730.0,0.30424952]
[1761768804263,0.34,110740.0,110730.0,0.30524952]
[1761768804584,0.34,110740.0,110730.0,0.30624952]
[1761768804908,0.34,110740.0,110730.0,0.12563]